bitfinex/quotes_ETHUSD_20260107
["timestamp","ask_amount","ask_price","bid_price","bid_amount"]
[1767819717283,0.94299201,3141.5,3140.0,3.18463338]
[1767819717484,0.94299201,3141.5,3139.9,3.18478134]
[1767819718992,0.94299201,3141.3,3139.8,3.18491307]
[1767819719194,0.94299201,3141.1,3139.8,3.68256053]
[1767819719411,0.94299201,3141.1,3139.8,6.86747676]
[1767819719612,0.94299201,3141.1,3139.8,3.68256053]
[1767819720190,0.94299201,3141.1,3139.8,0.49764746]
[1767819720396,0.94299201,3141.1,3139.4,4.14182143]
[1767819720599,0.94299201,3141.1,3139.5,1.79156151]
[1767819720805,0.94299201,3141.1,3139.7,6.370032]
[1767819721005,0.94299201,3141.1,3139.7,3.18501433]
[1767819721200,0.94299201,3140.8,3139.6,7.3267812]
[1767819722108,0.94299201,3140.8,3140.2,0.001]
[1767819722344,0.94299201,3140.8,3139.6,0.95656151]
[1767819723135,0.97441023,3140.4,3139.4,3.18529647]
[1767819723305,1.70869252,3140.3,3139.4,3.18529647]
[1767819723506,0.97441023,3140.2,3139.3,4.15136882]
[1767819723701,0.97441023,3140.2,3139.1,3.1856111]
[1767819723702,0.97441023,3140.2,3139.0,4.15163002]
[1767819723934,0.97441023,3140.2,3138.9,4.02075855]
[1767819724234,0.97441023,3140.0,3139.0,3.18571774]
[1767819724409,0.97441023,3140.0,3138.9,2.61823535]
[1767819724725,0.97441023,3140.0,3138.9,1.80096788]
[1767819724931,0.17086925,3140.1,3139.0,0.96596788]
[1767819725128,3.35553365,3140.1,3139.2,4.15144994]
[1767819725435,0.33555337,3140.0,3139.2,4.15144994]
[1767819726316,0.17086925,3140.1,3139.2,4.15144994]
[1767819727108,3.3554886,3140.1,3139.2,4.15144994]
[1767819727431,0.17086925,3140.1,3139.3,0.96596788]
[1767819728420,0.97441023,3140.6,3139.5,0.96596788]
[1767819728601,4.15858149,3140.6,3139.5,0.96596788]
[1767819728806,0.93554465,3141.1,3139.7,0.93372356]
[1767819729012,0.93554465,3141.0,3139.8,0.93372356]
[1767819729737,4.11928331,3141.0,3139.9,4.11853836]
[1767819729926,4.11928331,3141.0,3140.0,0.41185384]
[1767819730436,7.30302197,3141.0,3140.0,0.41185384]
[1767819731247,0.93554465,3140.9,3140.0,0.41185384]
[1767819731534,0.93554465,3140.9,3139.7,3.18496609]
[1767819731739,4.11944684,3140.8,3139.7,3.18501767]
[1767819731926,4.11944684,3140.8,3139.7,7.3037589]
[1767819732839,4.11944684,3140.8,3139.8,0.93372356]
[1767819733138,4.11944684,3140.8,3139.9,0.73037589]
[1767819733944,7.30334903,3140.8,3139.9,0.73037589]
[1767819734144,7.30334903,3140.8,3139.8,0.93372356]
[1767819734348,7.30334903,3140.8,3139.8,4.11863567]
[1767819734524,4.11944684,3140.8,3139.8,4.11863567]
[1767819735044,7.30334903,3140.8,3139.8,0.93372356]
[1767819735410,0.001,3140.5,3139.8,0.93372356]
[1767819735610,0.001,3140.5,3139.9,0.41187031]
[1767819737051,0.001,3140.5,3139.5,3.18719885]
[1767819737052,0.93654465,3140.5,3139.5,0.002]
[1767819738217,0.93554465,3140.3,3139.5,0.002]
[1767819740527,3.18451054,3140.2,3139.5,0.002]
[1767819740736,4.12005519,3140.2,3139.5,0.002]
[1767819741238,7.30456573,3140.2,3139.5,0.002]
[1767819741454,0.93554465,3140.0,3139.1,0.002]
[1767819742846,0.93554465,3139.8,3139.1,0.002]
[1767819743050,0.37285652,3139.7,3139.1,0.002]
[1767819743346,1.30840117,3139.7,3139.1,0.002]
[1767819745245,3.18511912,3139.6,3139.1,0.002]
[1767819745677,0.93554465,3139.5,3138.6,0.002]
[1767819747130,0.93554465,3139.3,3138.6,0.002]
[1767819747349,0.93554465,3139.1,3138.6,0.002]
[1767819748346,0.73025382,3139.2,3138.6,0.002]
[1767819748518,1.56625382,3139.2,3138.6,0.002]
[1767819752151,2.51828728,3139.2,3138.6,0.002]
[1767819752449,5.70381982,3139.2,3138.6,0.002]
[1767819752651,0.57038198,3139.1,3138.6,0.002]
[1767819753447,1.52241544,3139.1,3138.6,0.002]
[1767819753648,1.52241544,3139.1,3138.3,0.002]
[1767819753649,0.95203346,3139.0,3138.3,0.002]
[1767819754150,4.13780714,3139.0,3138.3,0.002]
[1767819754331,0.47081891,3138.9,3138.3,0.002]
[1767819755445,0.47081891,3138.9,3138.3,0.99583687]
[1767819755948,0.57038198,3139.1,3138.3,0.99583687]
[1767819756448,0.57038198,3139.1,3138.3,4.18221566]
[1767819757047,0.57038198,3139.1,3138.4,0.99383687]
[1767819757249,4.02164178,3139.1,3138.4,0.99383687]
[1767819757462,4.97367524,3139.1,3138.4,0.99383687]
[1767819757636,0.95203346,3139.0,3138.3,0.002]
[1767819758333,0.95203346,3139.0,3138.3,0.99583687]
[1767819760026,0.836,3139.1,3138.3,0.99583687]
[1767819760335,4.13698397,3139.8,3138.6,0.99383687]
[1767819760683,0.95203346,3139.7,3138.6,0.99383687]
[1767819760824,0.95403346,3139.9,3138.6,0.99383687]
[1767819761023,0.836,3139.8,3138.6,0.99383687]
[1767819761229,0.836,3139.8,3138.8,0.99383687]
[1767819762126,4.13890973,3139.9,3138.8,0.99383687]
[1767819762127,0.002,3139.9,3138.8,0.99383687]
[1767819762354,0.002,3139.9,3139.0,0.99383687]
[1767819763438,0.95403346,3139.9,3139.0,0.99383687]
[1767819763860,0.95403346,3139.9,3139.0,1.81398644]
[1767819764439,0.95403346,3139.9,3139.1,4.17946332]
[1767819764925,4.13884996,3139.9,3139.1,0.99383687]
[1767819765457,3.1868165,3139.9,3139.1,0.99383687]
[1767819766858,3.1868165,3139.9,3139.2,0.99383687]
[1767819766859,0.002,3139.9,3139.2,0.99383687]
[1767819768960,0.002,3139.9,3139.3,0.99383687]
[1767819769760,0.7227387,3139.9,3139.3,0.99383687]
[1767819773271,0.002,3139.9,3139.4,0.99383687]
[1767819774639,0.002,3139.6,3139.4,0.99383687]
[1767819775249,0.002,3140.2,3139.9,0.99383687]
[1767819775447,0.002,3140.2,3139.5,3.18522057]
[1767819775448,0.95403346,3141.2,3140.2,0.99383687]
[1767819775647,0.836,3141.1,3140.4,0.99383687]
[1767819775873,0.95403346,3141.2,3140.4,0.99383687]
[1767819776278,4.00118876,3141.2,3140.4,0.99383687]
[1767819777341,4.1375458,3141.2,3140.4,0.99383687]
[1767819777782,0.002,3141.2,3140.5,0.99383687]
[1767819778274,6.36899894,3141.2,3140.5,0.99383687]
[1767819779570,0.95203346,3141.1,3140.2,0.99383687]
[1767819779776,1.6841367,3141.0,3140.2,0.99383687]
[1767819780670,0.95203346,3140.9,3139.6,0.99383687]
[1767819780892,0.95203346,3140.7,3139.6,0.99383687]
[1767819781578,6.36820988,3140.6,3139.6,0.99383687]
[1767819781748,3.18410494,3140.6,3139.7,0.97092076]
[1767819781948,0.73201681,3140.5,3139.7,0.97092076]
[1767819782353,1.56801681,3140.5,3139.7,0.97092076]
[1767819783460,3.18430773,3140.4,3139.7,0.97092076]
[1767819785086,0.91066421,3140.3,3139.4,0.90771741]
[1767819785870,4.09516987,3140.3,3139.5,0.90771741]
[1767819786069,4.46461673,3140.3,3139.5,0.90771741]
[1767819786658,0.91066421,3140.2,3139.4,3.18529694]
[1767819787264,0.91066421,3140.2,3139.5,0.90771741]
[1767819788674,0.001,3140.0,3139.5,0.90771741]
[1767819789278,0.001,3140.0,3139.4,0.90771741]
[1767819790197,0.001,3140.0,3139.4,4.09299119]
[1767819791274,0.001,3140.0,3139.4,4.82083942]
[1767819791781,0.001,3140.0,3139.5,0.90771741]
[1767819793091,0.001,3140.0,3139.6,0.90771741]
[1767819794461,0.001,3140.0,3139.7,0.90771741]
[1767819795165,0.001,3140.0,3139.8,0.00699762]
[1767819795366,3.18407175,3140.7,3140.0,0.90771741]
[1767819795592,3.1837164,3141.0,3140.0,0.90771741]
[1767819795891,4.0195981,3141.1,3140.0,0.90771741]
[1767819796105,0.91066421,3140.9,3140.0,0.90771741]
[1767819796265,0.91066421,3140.9,3139.8,0.90771741]
[1767819796464,0.91066421,3140.7,3139.8,0.90771741]
[1767819796685,0.91066421,3140.5,3139.8,0.90771741]
[1767819796891,0.91066421,3140.5,3139.5,0.90771741]
[1767819797072,0.17466642,3140.4,3139.5,0.90771741]
[1767819797272,0.17466642,3140.4,3139.6,0.90771741]
[1767819797692,0.17466642,3140.4,3139.3,0.90771741]
[1767819797693,1.08533063,3140.4,3139.3,0.90771741]
[1767819797903,1.08533063,3140.4,3139.4,0.90771741]
[1767819798698,0.91066421,3140.2,3139.4,0.90771741]
[1767819798903,0.40950733,3140.1,3139.4,0.90771741]
[1767819799218,0.40950733,3140.1,3139.5,0.90771741]
[1767819799420,4.26968579,3140.4,3139.5,0.90771741]
[1767819800295,0.91066421,3140.3,3139.8,0.001]
[1767819800503,0.91066421,3140.2,3138.9,0.90771741]
[1767819800703,0.91066421,3140.0,3138.9,0.90771741]
[1767819802718,0.91066421,3139.8,3138.9,0.90771741]
[1767819802903,1.63869359,3139.7,3138.9,0.90771741]
[1767819805018,0.91066421,3139.5,3138.7,0.90771741]
[1767819805220,0.91066421,3139.5,3138.8,0.90771741]
[1767819805393,3.18511912,3139.6,3138.8,0.90771741]
[1767819805594,0.43764488,3139.6,3139.0,0.90771741]
[1767819805791,0.836,3139.7,3139.0,0.90771741]
[1767819806494,4.02105404,3139.7,3139.0,0.90771741]
[1767819807827,3.18505404,3139.7,3139.0,0.90771741]
[1767819808124,0.91066421,3139.7,3138.8,0.90771741]
[1767819808296,0.91066421,3139.5,3138.8,0.90771741]
[1767819808496,0.81167152,3139.6,3139.0,0.90771741]
[1767819808825,0.836,3139.7,3139.0,0.90771741]
[1767819809194,0.836,3139.7,3139.1,0.90771741]
[1767819809404,0.91066421,3140.3,3139.1,0.90771741]
[1767819809594,1.74666421,3140.2,3139.1,0.90771741]
[1767819809813,0.17466642,3140.1,3139.3,0.90771741]
[1767819811224,3.35928015,3140.1,3139.3,0.90771741]
[1767819811428,3.35928015,3140.1,3138.9,0.90771741]
[1767819811429,0.91066421,3140.0,3138.9,0.90771741]
[1767819811617,0.91066421,3140.0,3138.9,4.09353261]
[1767819811816,0.91066421,3140.0,3139.0,3.18570953]
[1767819811998,0.90654807,3139.9,3139.2,0.002]
[1767819812194,0.82905581,3140.0,3139.2,1.00136957]
[1767819812408,1.08121449,3140.1,3139.4,0.99936957]
[1767819812610,1.08121449,3140.1,3139.2,1.00136957]
[1767819812611,0.90654807,3140.0,3139.2,1.00136957]
[1767819813433,3.1848148,3139.9,3139.2,1.00136957]
[1767819814122,0.90654807,3140.0,3139.2,1.00136957]
[1767819814123,4.09131228,3140.0,3139.2,1.00136957]
[1767819814322,0.90654807,3140.0,3139.2,1.00136957]
[1767819814854,4.09135129,3140.0,3139.2,1.00136957]
[1767819815336,0.17466642,3140.1,3139.3,0.99936957]
[1767819815337,3.35932742,3140.1,3139.3,0.99936957]
[1767819816016,0.17466642,3140.1,3139.4,0.99936957]
[1767819816341,0.836,3140.3,3139.4,0.99936957]
[1767819816908,1.74254807,3140.3,3139.4,0.99936957]
[1767819817527,0.90654807,3140.2,3139.3,3.18540159]
[1767819817840,0.90654807,3140.2,3139.3,7.37019466]
[1767819818044,0.90654807,3140.2,3139.4,0.77909042]
[1767819819626,0.90654807,3140.2,3139.5,3.18522057]
[1767819820336,0.90654807,3140.2,3139.4,3.96436054]
[1767819821108,4.09105881,3140.2,3139.4,1.77845999]
[1767819821635,0.90654807,3140.1,3139.4,0.99936957]
[1767819821932,1.74254807,3140.3,3139.5,0.99936957]
[1767819822134,0.836,3140.2,3139.5,0.99936957]
[1767819822740,0.90654807,3140.8,3139.6,0.99936957]
[1767819823037,3.18552826,3141.2,3139.6,0.99936957]
[1767819823038,0.90654807,3141.0,3139.6,0.99936957]
[1767819823207,1.74254807,3140.9,3139.6,0.99936957]
[1767819823408,2.5535225,3140.9,3139.8,0.99936957]
[1767819823654,5.73741969,3140.9,3139.9,3.1848148]
[1767819823836,5.73741969,3140.9,3140.0,0.99936957]
[1767819824937,4.90141969,3140.9,3140.0,0.99936957]
[1767819825243,0.002,3140.6,3140.0,0.99936957]
[1767819825426,0.002,3140.6,3140.1,0.99936957]
[1767819825836,0.002,3140.6,3140.2,0.99936957]
[1767819827631,0.002,3140.6,3140.0,0.99936957]
[1767819828445,0.002,3140.6,3140.0,4.18407676]
[1767819829022,0.002,3140.6,3140.1,0.99936957]
[1767819833047,0.002,3140.6,3140.1,4.18397817]
[1767819833356,0.002,3140.6,3140.2,0.99936957]
[1767819835073,0.002,3140.6,3140.3,4.1837787]
[1767819835572,0.002,3140.6,3140.3,0.99936957]
[1767819836777,0.002,3140.6,3139.7,0.17463737]
[1767819836778,0.002,3140.6,3140.1,0.99936957]
[1767819837473,0.90854807,3140.6,3139.8,0.99936957]
[1767819837653,0.90654807,3140.5,3139.7,3.35960273]
[1767819837850,0.90654807,3140.5,3139.8,3.18491427]
[1767819838052,0.90654807,3140.5,3139.8,3.18487145]
[1767819838253,0.90654807,3140.5,3139.8,4.18424102]
[1767819838451,0.002,3140.3,3139.8,4.18424102]
[1767819841381,0.002,3140.3,3139.8,0.99936957]
[1767819841548,0.92396787,3140.2,3139.7,0.001]
[1767819842276,0.41127727,3140.3,3139.8,0.92243383]
[1767819842450,0.002,3140.3,3139.9,0.92243383]
[1767819845095,0.002,3140.3,3139.9,4.10724162]
[1767819845380,0.002,3140.3,3139.9,0.92243383]
[1767819847874,0.002,3140.3,3139.9,4.10722597]
[1767819848182,0.002,3140.3,3139.9,0.92243383]
[1767819848383,0.002,3140.3,3140.0,0.95243475]
[1767819850583,0.002,3140.3,3140.1,3.18461195]
[1767819850801,0.002,3140.3,3140.2,0.92243383]
[1767819854490,0.002,3140.3,3140.2,4.10694437]
[1767819856683,0.002,3140.3,3140.2,0.92243383]
[1767819858994,0.002,3140.6,3140.3,0.92243383]
[1767819859298,0.002,3140.9,3140.5,0.92243383]
[1767819860972,0.002,3140.9,3140.6,3.18410494]
[1767819861790,0.002,3140.9,3140.5,4.10659026]
[1767819863583,0.90270424,3140.9,3140.3,3.18435872]
[1767819863892,0.90270424,3140.6,3139.9,3.59561334]
[1767819864497,0.90270424,3140.6,3139.9,0.41084504]
[1767819864697,0.90270424,3140.6,3139.8,0.92243383]
[1767819864993,0.90270424,3140.6,3139.8,4.10730904]
[1767819865673,0.90070424,3140.5,3139.7,0.001]
[1767819866074,0.90070424,3140.5,3139.8,3.18490563]
[1767819867799,0.90070424,3140.5,3139.7,4.10842592]
[1767819867977,0.90070424,3140.5,3139.7,4.83778808]
[1767819868373,0.90070424,3140.5,3139.8,0.92243383]
[1767819869574,0.90070424,3140.4,3139.8,0.92243383]
[1767819869975,0.90070424,3140.4,3139.8,4.10732484]
[1767819870601,0.90070424,3140.4,3139.7,4.10839556]
[1767819870905,0.90070424,3140.3,3139.7,0.001]
[1767819871309,0.90070424,3140.3,3139.2,0.002]
[1767819871506,0.90070424,3140.0,3139.2,0.002]
[1767819871730,0.90070424,3139.8,3139.2,0.002]
[1767819871881,0.91747161,3139.6,3139.2,0.002]
[1767819873282,0.91747161,3139.8,3138.9,0.95779561]
[1767819873481,0.91747161,3140.5,3139.1,0.95579561]
[1767819873684,0.91747161,3140.3,3139.1,0.95579561]
[1767819874301,0.91747161,3140.1,3139.3,0.95579561]
[1767819874492,1.32766983,3140.1,3139.3,0.95579561]
[1767819874688,0.91747161,3140.0,3139.3,0.95579561]
[1767819874894,0.41019822,3140.1,3139.3,0.95579561]
[1767819874895,1.32766983,3140.1,3139.3,0.95579561]
[1767819875710,1.32766983,3140.1,3139.5,0.001]
[1767819876614,1.32766983,3140.1,3139.5,0.95679561]
[1767819876615,0.41019822,3140.1,3139.5,0.95679561]
[1767819876816,4.10178493,3140.4,3139.5,0.95679561]
[1767819876817,0.91747161,3140.4,3139.5,0.95679561]
[1767819876995,0.002,3140.6,3139.6,0.03185119]
[1767819877322,0.002,3140.6,3139.7,0.95579561]
[1767819877517,4.10358538,3140.6,3139.7,0.95579561]
[1767819877719,0.91747161,3140.5,3139.7,0.95579561]
[1767819878288,0.91747161,3140.5,3139.5,0.001]
[1767819878289,0.002,3140.6,3139.9,0.95579561]
[1767819878493,0.002,3140.6,3139.5,4.98374035]
[1767819878494,0.002,3140.6,3140.1,0.95579561]
[1767819880195,0.002,3140.6,3140.1,4.14035091]
[1767819880407,0.002,3140.6,3140.1,0.95579561]
[1767819885037,0.002,3140.6,3140.1,4.14039117]
[1767819885231,0.002,3140.6,3140.2,0.95579561]
[1767819886936,0.002,3140.6,3140.3,0.95579561]
[1767819887130,0.002,3140.9,3140.3,0.95579561]
[1767819887651,0.002,3140.6,3140.3,0.95579561]
[1767819887810,0.002,3140.9,3140.5,0.95579561]
[1767819888515,0.002,3140.9,3140.4,0.73247451]
[1767819888722,0.91947161,3140.9,3140.4,0.73247451]
[1767819893024,0.002,3140.9,3140.5,0.95579561]
[1767819893220,0.002,3140.9,3140.6,3.18410494]
[1767819893725,0.002,3140.9,3140.5,4.13996684]
[1767819894553,0.002,3140.9,3140.5,0.95579561]
[1767819895759,0.002,3140.9,3140.4,3.18430247]
[1767819895760,0.002,3140.9,3140.3,4.14017161]
[1767819895964,0.002,3140.9,3140.4,0.73246705]
[1767819896177,0.002,3140.9,3140.3,4.14017161]
[1767819896470,0.002,3140.9,3140.5,0.95579561]
[1767819897760,0.002,3140.9,3140.3,4.1401813]
[1767819897920,0.002,3140.9,3140.3,0.95579561]
[1767819898115,0.002,3140.9,3140.4,0.41402897]
[1767819898337,0.91947161,3140.9,3140.3,4.14018353]
[1767819898850,0.91947161,3140.9,3140.4,3.18429235]
[1767819899362,0.91947161,3140.9,3140.3,4.14012451]
[1767819899726,0.91947161,3140.9,3140.4,3.18429932]
[1767819899955,0.002,3140.6,3140.4,3.18429932]
[1767819900144,0.002,3140.6,3140.4,3.91675765]
[1767819900457,0.002,3140.6,3140.4,0.73245833]
[1767819901453,0.002,3140.9,3140.4,1.68825394]
[1767819902149,0.002,3140.9,3140.5,4.17101676]
[1767819902366,0.002,3140.9,3140.5,0.98681043]
[1767819902659,0.002,3140.9,3140.6,0.98681043]
[1767819902820,0.002,3141.5,3141.0,0.98681043]
[1767819903026,0.91452504,3141.5,3140.6,0.98681043]
[1767819903328,0.91252504,3141.4,3140.6,0.98681043]
[1767819903728,1.75052504,3141.5,3140.6,0.98681043]
[1767819903923,1.75052504,3141.5,3140.8,0.98681043]
[1767819904132,0.91252504,3141.4,3140.8,0.98681043]
[1767819904527,0.91252504,3141.4,3140.7,0.17956037]
[1767819904732,0.91252504,3141.3,3140.7,0.17956037]
[1767819905056,0.91252504,3141.3,3140.6,0.98681043]
[1767819905262,0.91252504,3141.3,3140.5,3.99295682]
[1767819905622,0.91252504,3141.3,3140.5,0.8087933]
[1767819906128,0.91252504,3141.3,3140.5,3.99299304]
[1767819907454,0.91252504,3141.3,3140.4,0.98681043]
[1767819907455,0.91252504,3141.2,3140.4,0.98681043]
[1767819907770,0.91252504,3141.2,3139.9,0.98681043]
[1767819907933,0.91252504,3141.2,3139.9,4.17160337]
[1767819908257,0.91252504,3141.2,3140.0,3.18468576]
[1767819909440,0.91252504,3141.0,3140.0,0.98681043]
[1767819909750,0.91252504,3140.8,3140.0,0.98681043]
[1767819911664,0.91252504,3140.8,3140.3,0.001]
[1767819912458,0.91252504,3140.7,3140.3,0.001]
[1767819916070,1.74752504,3140.9,3140.3,0.001]
[1767819916293,1.92227754,3140.9,3140.3,0.98781043]
[1767819916640,1.92327754,3140.9,3140.3,0.98781043]
[1767819918980,5.10710845,3140.9,3140.3,0.98781043]
[1767819919482,4.27110845,3140.9,3140.3,0.98781043]
[1767819919684,0.91252504,3140.8,3140.3,0.001]
[1767819920050,1.33963588,3140.8,3140.3,0.001]
[1767819920256,0.91252504,3140.7,3140.3,0.001]
[1767819922779,1.08727754,3140.9,3140.3,0.001]
[1767819922984,1.08727754,3140.9,3140.3,0.98781043]
[1767819923484,1.08727754,3140.9,3140.6,0.001]
[1767819923683,0.42710505,3140.8,3140.6,0.001]
[1767819924183,1.08727754,3140.9,3140.3,0.001]
[1767819924476,0.91252504,3140.8,3140.3,0.001]
[1767819924685,0.91252504,3140.7,3140.3,0.001]
[1767819924882,0.91252504,3140.7,3139.8,3.18487134]
[1767819925058,6.3678777,3140.8,3139.9,3.18481192]
[1767819925059,0.91252504,3140.5,3139.9,3.18481192]
[1767819925259,0.91252504,3140.5,3139.8,3.18488642]
[1767819925481,0.91252504,3140.5,3139.9,4.17161308]
[1767819925670,0.91252504,3140.5,3139.9,7.35642788]
[1767819926193,0.91252504,3140.5,3139.9,4.17161308]
[1767819926369,0.91252504,3140.7,3140.0,0.98681043]
[1767819926891,0.91252504,3140.7,3139.9,3.68556396]
[1767819927062,0.91252504,3140.6,3139.8,3.1848396]
[1767819927590,0.91252504,3140.6,3139.9,0.98681043]
[1767819928390,0.91252504,3140.6,3139.9,4.1716018]
[1767819928594,0.91252504,3140.6,3139.9,0.98681043]
[1767819928758,0.91252504,3140.6,3139.9,4.17161975]
[1767819929560,0.91252504,3140.6,3139.9,4.99088058]
[1767819931087,0.91252504,3140.6,3139.9,4.00407015]
[1767819931459,0.91252504,3140.6,3139.9,4.99088058]
[1767819933163,0.91252504,3140.6,3139.9,4.00407015]
[1767819933487,0.92156958,3140.8,3140.0,0.90349848]
[1767819934263,1.09632208,3140.9,3140.0,0.90349848]
[1767819934477,4.28016206,3140.9,3140.0,0.90349848]
[1767819934657,1.34958579,3140.8,3140.0,0.90349848]
[1767819934984,1.34958579,3140.8,3140.2,0.001]
[1767819935796,0.92156958,3140.7,3140.2,0.001]
[1767819946908,0.002,3140.4,3140.2,0.001]
[1767819953011,0.002,3140.4,3140.2,0.90449848]
[1767819953212,0.002,3140.4,3140.2,0.001]
[1767819953824,0.002,3140.7,3140.3,0.90349848]
[1767819958601,0.002,3140.7,3140.2,0.001]
[1767819959220,0.002,3140.4,3140.2,0.001]
[1767819960232,0.92356958,3140.4,3140.2,0.001]
[1767819960892,0.002,3140.4,3139.9,4.08827864]
[1767819961087,0.002,3140.4,3139.9,4.8991903]
[1767819961524,0.002,3140.4,3139.9,4.89918802]
[1767819961828,0.002,3140.4,3139.9,1.71441014]
[1767819962193,0.95641839,3140.4,3139.8,3.18488991]
[1767819962522,0.95641839,3140.4,3139.8,4.09904101]
[1767819962723,0.95641839,3140.4,3139.9,3.1848013]
[1767819963123,0.95641839,3140.4,3139.8,4.09902172]
[1767819963624,0.95641839,3140.4,3139.5,0.001]
[1767819963625,0.95441839,3140.3,3139.5,0.001]
[1767819963836,6.37062781,3140.4,3139.5,0.001]
[1767819963837,0.95441839,3140.1,3139.5,0.001]
[1767819964507,0.95441839,3139.9,3139.5,0.001]
[1767819966466,0.95441839,3139.9,3139.1,0.9141511]
[1767819966467,0.95441839,3139.8,3139.1,0.9141511]
[1767819966741,0.95441839,3139.8,3139.0,0.9141511]
[1767819966940,0.95441839,3139.8,3139.1,0.9141511]
[1767819967319,0.95441839,3139.8,3139.2,0.9141511]
[1767819969820,0.95441839,3139.8,3139.0,0.9141511]
[1767819970026,0.95441839,3139.8,3139.1,0.9141511]
[1767819970553,0.001,3139.5,3139.1,0.9141511]
[1767819971450,0.001,3139.5,3139.2,0.9141511]
[1767819973159,0.001,3139.5,3139.3,0.9141511]
[1767819973458,1.79041839,3140.0,3139.3,0.9141511]
[1767819973623,3.91709795,3140.2,3139.3,0.9141511]
[1767819973624,4.87151634,3140.2,3139.3,0.9141511]
[1767819973826,5.70751634,3140.2,3139.3,0.9141511]
[1767819974033,1.52517002,3140.1,3139.3,0.9141511]
[1767819974635,1.52517002,3140.1,3139.4,0.9141511]
[1767819975215,4.7098118,3140.1,3139.4,0.9141511]
[1767819975412,0.95441839,3140.0,3139.4,0.9141511]
[1767819976726,0.57075163,3140.1,3139.4,0.9141511]
[1767819976926,4.97498513,3140.2,3139.4,0.9141511]
[1767819977247,0.95441839,3140.1,3139.4,4.09945887]
[1767819978315,0.95441839,3140.1,3139.4,0.9141511]
[1767819979539,0.95441839,3140.0,3139.4,0.9141511]
[1767819979741,0.95441839,3140.0,3139.4,4.09944406]
[1767819980120,0.95441839,3140.0,3139.4,4.82793922]
[1767819980321,0.95441839,3140.0,3139.4,1.64264626]
[1767819980720,0.95441839,3140.0,3139.4,0.9141511]
[1767819981248,0.95441839,3140.0,3139.2,0.9141511]
[1767819981944,0.95441839,3140.0,3139.0,6.37145586]
[1767819981945,0.95441839,3139.9,3139.0,7.28560696]
[1767819982129,0.95441839,3139.9,3139.2,0.9141511]
[1767819982848,0.95441839,3139.9,3139.5,0.002]
[1767819983045,0.001,3139.7,3139.5,0.002]
[1767819983221,0.001,3139.7,3139.5,0.9161511]
[1767819983426,0.95441839,3140.3,3139.6,0.9141511]
[1767819983729,0.95641839,3140.4,3139.6,0.9141511]
[1767819985530,0.95641839,3140.4,3139.6,4.09917355]
[1767819985731,0.95641839,3140.4,3139.6,4.82781316]
[1767819987053,0.95441839,3140.3,3139.6,0.72863961]
[1767819987255,0.95441839,3140.3,3139.5,0.002]
[1767819991433,0.95441839,3140.3,3139.5,0.9161511]
[1767819993055,0.95441839,3140.3,3139.5,4.10129877]
[1767819993459,0.95441839,3140.3,3139.5,7.28651934]
[1767819993660,0.95441839,3140.3,3139.6,0.72865193]
[1767819993956,0.99792684,3140.2,3139.5,0.9161511]
[1767819994326,0.99792684,3140.2,3139.5,4.10136593]
[1767819994929,0.001,3140.0,3139.5,4.10136593]
[1767819998955,0.001,3140.0,3139.6,0.91605027]
[1767819999357,0.001,3140.0,3139.6,4.10116738]
[1767819999658,0.001,3140.0,3139.5,3.18718036]
[1767819999845,0.001,3140.0,3139.5,3.91604271]
[1767820000449,0.001,3140.0,3139.6,3.18511867]
[1767820000629,0.001,3140.0,3139.5,3.91603451]
[1767820001942,0.001,3140.0,3139.6,3.18508507]
[1767820002141,0.001,3140.0,3139.6,3.98681664]
[1767820003135,0.001,3140.0,3139.6,0.80173157]
[1767820003351,0.001,3140.0,3139.5,4.10321968]
[1767820003534,0.99892684,3140.0,3139.5,0.002]
[1767820005761,0.99792684,3139.9,3139.5,0.002]
[1767820006561,0.001,3139.7,3139.5,0.002]
[1767820012068,0.99892684,3139.7,3139.5,0.002]
[1767820012567,0.001,3139.7,3139.5,0.002]
[1767820015667,0.99892684,3139.7,3139.5,0.002]
[1767820015969,0.99892684,3139.7,3139.1,0.002]
[1767820017270,0.99792684,3139.6,3139.1,0.002]
[1767820021658,0.4193754,3139.7,3139.1,0.002]
[1767820021976,0.002,3140.4,3139.8,0.92645585]
[1767820022159,0.98921741,3141.1,3140.3,0.92645585]
[1767820022355,3.18349432,3141.3,3140.3,0.92645585]
[1767820022561,0.98921741,3141.2,3140.3,0.92645585]
[1767820023249,0.98921741,3141.2,3140.6,0.92645585]
[1767820023449,0.98921741,3141.4,3140.6,0.92645585]
[1767820024289,0.98921741,3141.3,3140.6,0.92645585]
[1767820024491,0.98921741,3141.2,3140.0,0.92645585]
[1767820024653,0.98921741,3141.2,3140.0,4.11113951]
[1767820025373,0.98921741,3141.0,3140.0,4.11113951]
[1767820025575,0.98921741,3140.9,3140.0,4.11113951]
[1767820025774,0.98921741,3140.9,3140.1,0.92645585]
[1767820027465,0.98921741,3140.8,3140.1,0.92645585]
[1767820027882,0.98921741,3140.8,3140.1,4.11105442]
[1767820028980,0.98921741,3140.8,3140.1,0.92645585]
[1767820029487,0.98921741,3140.6,3139.9,0.92645585]
[1767820029783,0.98921741,3140.6,3139.7,0.92645585]
[1767820030082,0.98921741,3140.6,3139.5,1.76245585]
[1767820030255,0.98921741,3140.6,3139.1,0.92845585]
[1767820030256,0.98921741,3140.4,3139.1,0.92845585]
[1767820030584,0.98921741,3140.4,3139.2,0.92645585]
[1767820030990,0.98921741,3140.4,3139.3,0.92645585]
[1767820032186,0.98921741,3140.1,3139.1,0.002]
[1767820032383,0.98921741,3139.8,3139.1,0.002]
[1767820034591,0.98921741,3139.6,3139.1,0.002]
[1767820041800,4.17435562,3139.6,3139.1,0.002]
[1767820042496,4.17435562,3139.6,3139.4,0.001]
[1767820042798,4.17435562,3139.6,3139.1,0.002]
[1767820043100,4.6747969,3139.6,3139.1,0.002]
[1767820043808,1.48965869,3139.6,3139.1,0.002]
[1767820045201,0.50044128,3139.6,3139.1,0.92845585]
[1767820045399,0.98921741,3139.7,3139.1,0.92845585]
[1767820045702,0.98921741,3139.7,3139.1,0.002]
[1767820045871,4.17425588,3139.7,3139.1,0.002]
[1767820046588,0.98921741,3139.6,3138.9,0.002]
[1767820046779,0.98921741,3139.4,3138.6,0.002]
[1767820047988,3.1854235,3139.3,3138.6,0.002]
[1767820048192,0.98921741,3139.2,3138.6,0.002]
[1767820050402,0.98921741,3139.1,3138.6,0.002]
[1767820050591,1.40669482,3139.1,3138.6,0.002]
[1767820053401,0.90649422,3139.0,3138.3,0.002]